fUSD/lending_fUSD_20240519
["ID","MTS","AMOUNT","RATE_DAILY","PERIOD"]
[327488718,1716120639131,-322.03836439,0.00026599,2]
[327488719,1716120639141,-2000.0,0.000266,3]
[327488720,1716120639150,-2939.87868214,0.000266,3]
[327488721,1716120640532,-2748.65408246,0.000266,3]
[327488722,1716120640914,-500.0,0.000266,3]
[327488741,1716120644405,-337.135,0.000266,3]
[327488774,1716120644624,-2035.97725867,0.000266,3]
[327488776,1716120644635,-284.6013,0.000266,2]
[327488778,1716120644644,-2449.0,0.0002665,4]
[327488779,1716120644654,-18538.10085908,0.00026669,2]
[327488781,1716120644665,-198.54546408,0.0002668,2]
[327488783,1716120644675,-572.87870418,0.0002668,2]
[327488785,1716120644685,-524.0,0.00026698,2]
[327488788,1716120644694,-500.0,0.00026698,2]
[327488789,1716120644706,-500.0,0.00026698,2]
[327488791,1716120644715,-497.12831519,0.00026698,2]
[327488794,1716120644730,-442.27497626,0.00026698,2]
[327488797,1716120644744,-666.7400095,0.00026698,2]
[327488799,1716120644795,-298.60669905,0.00026698,2]
[327488800,1716120644804,-80.09700195,0.00026698,2]
[327488813,1716120646362,-624.81299805,0.00026698,2]
[327488814,1716120646372,-385.68159868,0.00026698,2]
[327488815,1716120646383,-114.31840132,0.00026698,2]
[327488816,1716120646392,-482.17159868,0.00026698,2]
[327488817,1716120646525,-258.55840132,0.00026698,2]
[327488818,1716120646535,-500.0,0.00026698,2]
[327488819,1716120646551,-500.0,0.00026698,2]
[327488820,1716120646566,-348.84166868,0.00026698,2]
[327488821,1716120646579,-151.15833132,0.00026698,2]
[327488822,1716120646594,-633.38,0.00026698,2]
[327488823,1716120646603,-170.92032872,0.00026698,2]
[327488824,1716120646613,-500.0,0.00026698,2]
[327488825,1716120646623,-500.0,0.00026698,2]
[327488826,1716120646634,-500.0,0.00026698,2]
[327488827,1716120646643,-500.0,0.00026698,2]
[327488828,1716120646653,-695.88,0.00026698,2]
[327488829,1716120646665,-696.22,0.00026698,2]
[327488830,1716120646675,-500.0,0.00026698,2]
[327488831,1716120646684,-618.26,0.00026698,2]
[327488832,1716120646695,-500.0,0.00026698,2]
[327488833,1716120646705,-500.0,0.00026698,2]
[327488834,1716120646715,-500.0,0.00026698,2]
[327488835,1716120646726,-500.0,0.00026698,2]
[327488836,1716120646735,-306.80093996,0.00026698,2]
[327488837,1716120646778,-193.19906004,0.00026698,2]
[327488838,1716120646788,-110.86093996,0.00026698,2]
[327488839,1716120667080,643.32897965,0.00017259,2]
[327488840,1716120674660,5900.0,0.00017259,2]
[327488841,1716120738535,184.57,0.00025695,120]
[327488871,1716121204536,13945.17117453,0.00017259,2]
[327488872,1716121324742,325.80304841,0.00017259,2]
[327488873,1716121443754,180.35,0.00025341,120]
[327488900,1716121831599,-672.9332,0.00019625,2]
[327488902,1716121831609,-249.24,0.00020272,2]
[327488904,1716121831618,-322.0,0.000221,2]
[327488906,1716121831628,-155.9581075,0.000225,2]
[327488909,1716121831638,-164.23776797,0.00023216,2]
[327488911,1716121831648,-1042.5,0.00023348,2]
[327488914,1716121831657,-300.0,0.00025,2]
[327488916,1716121831667,-250.0,0.00025141,2]
[327488918,1716121831678,-632.92,0.00025365,2]
[327488919,1716121831687,-800.0,0.00025391,2]
[327488920,1716121831697,-160.91,0.0002557,2]
[327488921,1716121831706,-409.85678453,0.00025612,2]
[327488922,1716121831729,-632.64321547,0.00025612,2]
[327488923,1716121831738,-398.347585,0.00026,2]
[327488924,1716121831747,-400.0,0.000262,9]
[327488925,1716121831756,-900.0,0.000263,9]
[327488926,1716121831766,-1400.0,0.000264,9]
[327488927,1716121831775,-1900.0,0.000265,9]
[327488928,1716121831785,-415.01,0.0002652,2]
[327488929,1716121831794,-869.42,0.0002652,2]
[327488930,1716121831804,-869.42,0.0002652,2]
[327488931,1716121831813,-913.18,0.0002652,2]
[327488932,1716121831822,-945.81,0.0002652,2]
[327488933,1716121831831,-415.41,0.0002652,2]
[327488934,1716121831841,-869.42,0.0002652,2]
[327488935,1716121831850,-415.41,0.0002652,2]
[327488936,1716121831859,-869.42,0.0002652,2]
[327488937,1716121831869,-415.41,0.0002652,2]
[327488938,1716121831878,-869.42,0.0002652,2]
[327488939,1716121831889,-415.41,0.0002652,2]
[327488940,1716121831898,-415.41,0.0002652,2]
[327488941,1716121831908,-415.41,0.0002652,2]
[327488942,1716121831917,-415.41,0.0002652,2]
[327488943,1716121831927,-500.0,0.00026565,2]
[327488944,1716121831936,-500.0,0.00026566,2]
[327488945,1716121831946,-15069.66939734,0.00026596,2]
[327488946,1716121833900,-3349.15,0.00026596,2]
[327488947,1716121834044,-411.26103104,0.00026596,2]
[327488956,1716121838317,-17680.91947471,0.00026596,2]
[327488957,1716121838327,-322.03836439,0.00026596,2]
[327488958,1716121838336,-671.52,0.00026597,2]
[327488959,1716121838346,-1682.784,0.00026598,2]
[327488960,1716121838355,-9090.33816088,0.000266,2]
[327488961,1716121838367,-6104.88000001,0.000266,2]
[327488962,1716121838383,-1798.04095997,0.000266,2]
[327488963,1716121838394,-2400.0,0.000266,9]
[327488964,1716121838403,-381.91913612,0.0002668,2]
[327488965,1716121838412,-1430.54396451,0.00026687,5]
[327488966,1716121838435,-223.18478612,0.00026688,2]
[327488967,1716121838445,-475.01434833,0.00026688,2]
[327488968,1716121838455,-1063.64659674,0.00026689,2]
[327488969,1716121838465,-69186.08172062,0.0002669,2]
[327488970,1716121838477,-21250.98645734,0.0002669,2]
[327488971,1716121838513,-2152.61294,0.0002669,2]
[327488972,1716121838525,-6015.604,0.0002669,2]
[327488973,1716121838537,-1394.71488204,0.0002669,2]
[327488974,1716121838547,-20548.81341469,0.0002669,2]
[327488975,1716121838556,-667.21,0.00026695,2]
[327488976,1716121838566,-500.0,0.00026695,2]
[327488977,1716121838576,-500.0,0.00026695,2]
[327488978,1716121838586,-500.0,0.00026695,2]
[327488979,1716121838595,-500.0,0.00026695,2]
[327488980,1716121838605,-500.0,0.00026695,2]
[327488981,1716121838614,-500.0,0.00026695,2]
[327488982,1716121838625,-649.82,0.00026695,2]
[327488983,1716121838635,-500.0,0.00026695,2]
[327488984,1716121838645,-500.0,0.00026695,2]
[327488985,1716121838654,-500.0,0.00026695,2]
[327488986,1716121838664,-813.38,0.00026695,2]
[327488987,1716121838674,-500.0,0.00026695,2]
[327488988,1716121838683,-1040.76,0.00026695,2]
[327488989,1716121838692,-500.0,0.00026695,2]
[327488990,1716121838701,-877.35,0.00026695,2]
[327488991,1716121838710,-500.0,0.00026695,2]
[327488992,1716121838719,-574.33,0.00026695,2]
[327488993,1716121838728,-939.66,0.00026695,2]
[327488994,1716121838737,-3012.56423256,0.00026695,4]
[327488995,1716121838746,-500.0,0.00026695,2]
[327488996,1716121838755,-500.0,0.00026695,2]
[327488997,1716121838764,-500.0,0.00026695,2]
[327488998,1716121838773,-2399.42,0.00026695,2]
[327488999,1716121838782,-500.0,0.00026695,2]
[327489000,1716121838791,-500.0,0.00026695,2]
[327489001,1716121838800,-500.0,0.00026695,2]
[327489003,1716121838810,-500.0,0.00026695,2]
[327489004,1716121838819,-500.0,0.00026695,2]
[327489006,1716121838828,-500.0,0.00026695,2]
[327489008,1716121838837,-500.0,0.00026695,2]
[327489010,1716121838846,-500.0,0.00026695,2]
[327489011,1716121838855,-681.29,0.00026695,2]
[327489012,1716121838864,-500.0,0.00026695,2]
[327489013,1716121838874,-500.0,0.00026695,2]
[327489014,1716121838883,-500.0,0.00026695,2]
[327489015,1716121838892,-500.0,0.00026695,2]
[327489016,1716121838901,-509.19868549,0.00026695,2]
[327489017,1716121838911,-500.0,0.00026695,2]
[327489018,1716121838920,-500.0,0.00026695,2]
[327489019,1716121838931,-500.0,0.00026695,2]
[327489020,1716121838940,-500.0,0.00026695,2]
[327489021,1716121838949,-508.05960603,0.00026695,2]
[327489022,1716121838959,-500.0,0.00026695,2]
[327489023,1716121838968,-500.0,0.00026695,2]
[327489024,1716121838977,-500.0,0.00026695,2]
[327489025,1716121838987,-8913.86,0.00026695,2]
[327489026,1716121838996,-500.0,0.00026695,2]
[327489027,1716121839006,-500.0,0.00026695,2]
[327489028,1716121839016,-500.0,0.00026695,2]
[327489029,1716121839026,-500.0,0.00026695,2]
[327489030,1716121839036,-500.0,0.00026695,2]
[327489031,1716121839052,-500.0,0.00026695,2]
[327489032,1716121839067,-500.0,0.00026695,2]
[327489033,1716121839077,-500.0,0.00026695,2]
[327489034,1716121839088,-500.0,0.00026695,2]
[327489035,1716121839099,-500.0,0.00026695,2]
[327489036,1716121839109,-357.76938862,0.00026695,2]
[327489037,1716121839119,-500.0,0.00026695,2]
[327489038,1716121839129,-510.97732896,0.00026696,2]
[327489039,1716121839141,-506.55612998,0.00026696,2]
[327489040,1716121839151,-500.0,0.00026696,2]
[327489041,1716121839162,-500.0,0.00026696,2]
[327489042,1716121839172,-500.0,0.00026696,2]
[327489043,1716121839183,-500.0,0.00026696,2]
[327489044,1716121839194,-500.0,0.00026696,2]
[327489045,1716121839204,-294.77171669,0.00026696,2]
[327489046,1716121839215,-503.58978731,0.00026696,2]
[327489047,1716121839225,-500.0,0.00026696,2]
[327489048,1716121839235,-500.0,0.00026696,2]
[327489049,1716121839246,-500.0,0.00026696,2]
[327489050,1716121839256,-460.49405209,0.00026696,2]
[327489051,1716121839266,-502.09569215,0.00026696,2]
[327489052,1716121839276,-524.89229624,0.00026696,2]
[327489053,1716121839287,-500.0,0.00026696,2]
[327489054,1716121839297,-500.0,0.00026696,2]
[327489055,1716121839307,-521.32047232,0.00026696,2]
[327489056,1716121839318,-530.94345481,0.00026696,2]
[327489057,1716121839329,-500.0,0.00026696,2]
[327489058,1716121839340,-506.14457567,0.00026696,2]
[327489059,1716121839350,-500.0,0.00026696,2]
[327489060,1716121839362,-500.0,0.00026696,2]
[327489061,1716121839372,-500.0,0.00026696,2]
[327489062,1716121839382,-523.48880835,0.00026696,2]
[327489063,1716121839393,-500.0,0.00026696,2]
[327489065,1716121839403,-500.0,0.00026696,2]
[327489067,1716121839414,-500.0,0.00026696,2]
[327489068,1716121839426,-500.0,0.00026696,2]
[327489070,1716121839437,-500.0,0.00026696,2]
[327489071,1716121839447,-500.0,0.00026696,2]
[327489072,1716121839458,-500.0,0.00026696,2]
[327489073,1716121839468,-500.0,0.00026696,2]
[327489074,1716121839479,-500.0,0.00026696,2]
[327489075,1716121839489,-500.0,0.00026696,2]
[327489076,1716121839500,-500.0,0.00026696,2]
[327489077,1716121839510,-500.0,0.00026696,2]
[327489078,1716121839520,-500.0,0.00026696,2]
[327489079,1716121839531,-500.0,0.00026696,2]
[327489080,1716121839541,-500.0,0.00026696,2]
[327489081,1716121839552,-500.0,0.00026696,2]
[327489082,1716121839562,-500.0,0.00026696,2]
[327489083,1716121839572,-500.0,0.00026696,2]
[327489085,1716121839582,-500.0,0.00026696,2]
[327489087,1716121839592,-500.0,0.00026696,2]
[327489088,1716121839602,-352.18292312,0.00026696,2]
[327489089,1716121839612,-500.0,0.00026696,2]
[327489090,1716121839623,-794.18,0.00026696,2]
[327489091,1716121839633,-500.0,0.00026696,2]
[327489092,1716121839643,-500.0,0.00026696,2]
[327489093,1716121839653,-500.0,0.00026696,2]
[327489094,1716121839665,-500.0,0.00026696,2]
[327489095,1716121839676,-500.0,0.00026696,2]
[327489096,1716121839686,-542.78895804,0.00026696,2]
[327489097,1716121839696,-500.0,0.00026696,2]
[327489098,1716121839706,-506.49003134,0.00026696,2]
[327489101,1716121839716,-500.0,0.00026696,2]
[327489103,1716121839726,-500.0,0.00026696,2]
[327489104,1716121839736,-500.0,0.00026696,2]
[327489106,1716121839746,-441.31931837,0.00026696,2]
[327489107,1716121839763,-58.68068163,0.00026696,2]
[327489108,1716121839773,-276.44931837,0.00026696,2]
[327489109,1716121840084,-223.55068163,0.00026696,2]
[327489110,1716121840094,-276.74929583,0.00026696,2]
[327489111,1716121840107,-244.46558607,0.00026696,2]
[327489112,1716121840117,-500.0,0.00026696,2]
[327489113,1716121840126,-150.0,0.00026696,2]
[327489114,1716121840136,-500.0,0.00026696,2]
[327489115,1716121840147,-289.16260757,0.00026696,2]
[327489119,1716121842401,-500.0,0.00026695,2]
[327489120,1716121842411,-203.90320097,0.00026695,2]
[327489124,1716121842480,-296.09679903,0.00026695,2]
[327489126,1716121842490,-500.0,0.00026695,2]
[327489128,1716121842499,-210.83739243,0.00026696,2]
[327489130,1716121842509,-500.0,0.00026696,2]
[327489132,1716121842518,-500.0,0.00026696,2]
[327489134,1716121842527,-500.0,0.00026696,2]
[327489136,1716121842536,-500.0,0.00026696,2]
[327489138,1716121842545,-203.06580854,0.00026696,2]
[327489141,1716121842623,-296.93419146,0.00026696,2]
[327489145,1716121842633,-164.80580854,0.00026696,2]
[327489148,1716121842645,-314.33454932,0.00026696,2]
[327489153,1716121842656,-20.85964214,0.00026696,2]
[327489155,1716121842666,-500.0,0.00026696,2]
[327489156,1716121842675,-500.0,0.00026696,2]
[327489159,1716121842686,-1123.6,0.00026696,2]
[327489163,1716121842696,-500.0,0.00026696,2]
[327489166,1716121842707,-543.15923747,0.00026696,2]
[327489168,1716121842716,-215.7811207,0.00026696,2]
[327489183,1716121843013,-284.2188793,0.00026696,2]
[327489184,1716121843023,-500.0,0.00026696,2]
[327489185,1716121843033,-500.0,0.00026696,2]
[327489186,1716121843043,-500.0,0.00026696,2]
[327489187,1716121843052,-500.0,0.00026696,2]
[327489188,1716121843067,-500.0,0.00026696,2]
[327489189,1716121843077,-500.0,0.00026696,2]
[327489190,1716121843086,-500.0,0.00026696,2]
[327489191,1716121843095,-81.5911207,0.00026696,2]
[327489192,1716121843144,-418.4088793,0.00026696,2]
[327489193,1716121843154,-500.0,0.00026696,2]
[327489194,1716121843163,-511.08536619,0.00026696,2]
[327489195,1716121843172,-500.0,0.00026696,2]
[327489196,1716121843181,-507.16505572,0.00026696,2]
[327489197,1716121843190,-500.0,0.00026696,2]
[327489198,1716121843200,-146.54837116,0.00026696,2]
[327489199,1716121843212,-353.45162884,0.00026696,2]
[327489200,1716121843221,-500.0,0.00026696,2]
[327489201,1716121843231,-155.23344087,0.00026696,2]
[327489202,1716121843240,-500.0,0.00026696,2]
[327489203,1716121843250,-500.0,0.00026696,2]
[327489204,1716121843259,-500.0,0.00026696,2]
[327489206,1716121843269,-500.0,0.00026696,2]
[327489208,1716121843278,-500.0,0.00026696,2]
[327489209,1716121843287,-500.0,0.00026696,2]
[327489210,1716121843297,-500.0,0.00026696,2]
[327489212,1716121843306,-500.0,0.00026696,2]
[327489214,1716121843315,-408.50493029,0.00026696,2]
[327489219,1716121843358,-91.49506971,0.00026696,2]
[327489221,1716121843367,-500.0,0.00026696,2]
[327489223,1716121843376,-188.70157603,0.00026696,2]
[327489229,1716121843388,-335.7467498,0.00026696,2]
[327489233,1716121843397,-500.0,0.00026696,2]
[327489237,1716121843406,-500.0,0.00026696,2]
[327489240,1716121843415,-180.8532502,0.00026696,2]
[327489242,1716121843426,-310.43999999,0.00026696,2]
[327489243,1716121843454,-8.70674981,0.00026696,2]
[327489244,1716121843463,-291.29325019,0.00026696,2]
[327489245,1716121843475,-208.70674981,0.00026696,2]
[327489246,1716121843484,-424.85542295,0.00026696,2]
[327489250,1716121845656,-308.96099976,0.00026695,2]
[327489251,1716121845702,-191.03900024,0.00026695,2]
[327489252,1716121845712,-113.17821976,0.00026695,2]
[327489253,1716121845884,-386.82178024,0.00026695,2]
[327489254,1716121845893,-500.0,0.00026695,2]
[327489255,1716121845903,-502.16,0.00026695,2]
[327489256,1716121845912,-75.14457705,0.00026696,2]
[327489257,1716121845921,-500.0,0.00026696,2]
[327489258,1716121845930,-500.0,0.00026696,2]
[327489259,1716121845939,-506.7247477,0.00026696,2]
[327489260,1716121845948,-500.0,0.00026696,2]
[327489261,1716121845957,-500.0,0.00026696,2]
[327489262,1716121845966,-500.0,0.00026696,2]
[327489263,1716121845977,-500.0,0.00026696,2]
[327489264,1716121845986,-312.41022196,0.00026696,2]
[327489274,1716121861316,5900.0,0.00017259,2]
[327489275,1716121925979,409.69607959,0.00017259,2]
[327489276,1716121939971,411.04076264,0.00017259,2]
[327489277,1716121951739,516.09860247,0.00017259,2]
[327489278,1716121980823,175.37,0.00025659,120]
[327489279,1716122035708,524.28180258,9e-05,2]
[327489280,1716122076457,1106.31,0.00017259,2]
[327489281,1716122121373,199.2,0.00027,120]
[327489282,1716122150258,7848.21012,0.00011079,2]
[327489284,1716122276668,504.03,0.00025317,120]
[327489285,1716122281680,1063.85978917,0.00017259,2]
[327489286,1716122313067,5900.0,0.00017259,2]
[327489289,1716122420462,155.64,0.00013973,2]
[327489290,1716122516140,178.85,0.00025212,120]
[327489292,1716122782541,5900.0,0.00017259,2]
[327489293,1716122914783,159.64,0.00013973,2]
[327489294,1716122981427,1000.0,0.00018,2]
[327489317,1716123033773,-155.64,0.00020807,2]
[327489318,1716123033783,-626.45817203,0.00023443,2]
[327489319,1716123037006,180.35,0.00025184,120]
[327489343,1716123037908,-311.79182797,0.00023443,2]
[327489344,1716123037918,-1618.9737599,0.00025,10]
[327489345,1716123037928,-420.93,0.00025185,2]
[327489346,1716123037937,-838.84,0.00025268,2]
[327489347,1716123037947,-250.0,0.00025276,2]
[327489348,1716123037957,-164.23776797,0.00025412,2]
[327489349,1716123037966,-414.42,0.00025561,2]
[327489350,1716123037976,-150.0,0.00025562,2]
[327489351,1716123037985,-255.64,0.00025602,2]
[327489352,1716123037995,-160.91,0.00025659,2]
[327489353,1716123038005,-938.25,0.00025707,2]
[327489354,1716123038015,-415.41,0.00025741,2]
[327489355,1716123038024,-5387.68468364,0.00025746,2]
[327489356,1716123038034,-398.347585,0.00026,2]
[327489357,1716123038043,-150.0,0.00026199,7]
[327489358,1716123038053,-500.0,0.000262,9]
[327489359,1716123038063,-1100.0,0.000263,9]
[327489360,1716123038073,-1600.0,0.000264,9]
[327489361,1716123038082,-175.25644369,0.00026432,2]
[327489362,1716123038092,-32980.83041301,0.0002649,2]
[327489363,1716123038101,-2200.0,0.000265,9]
[327489364,1716123038110,-1252.43632,0.0002651,2]
[327489365,1716123038120,-523.91,0.00026513,2]
[327489366,1716123038130,-407.58,0.00026513,2]
[327489367,1716123038139,-300.0,0.00026513,2]
[327489368,1716123038148,-523.91,0.00026513,2]
[327489369,1716123038158,-300.0,0.00026513,2]
[327489370,1716123038168,-300.0,0.00026513,2]
[327489371,1716123038178,-523.91,0.00026513,2]
[327489372,1716123038187,-304.6,0.00026513,2]
[327489373,1716123038196,-322.03836439,0.00026545,2]
[327489374,1716123038206,-500.0,0.00026565,2]
[327489375,1716123038216,-475.01434833,0.00026588,2]
[327489376,1716123038226,-999.78158893,0.00026588,2]
[327489377,1716123038236,-300.0,0.00026588,7]
[327489378,1716123038246,-2959.1436357,0.00026588,7]
[327489379,1716123038256,-1430.54396451,0.00026589,5]
[327489380,1716123038266,-223.18478612,0.00026589,2]
[327489381,1716123038276,-14880.85602325,0.0002659,2]
[327489382,1716123038410,-152765.42477675,0.0002659,2]
[327489383,1716123038419,-1853.7226,0.0002659,2]
[327489384,1716123038430,-19435.02689093,0.00026595,2]
[327489385,1716123038439,-188.89155813,0.00026597,2]
[327489386,1716123038450,-2700.0,0.000266,9]
[327489387,1716123038461,-381.91913612,0.000266,2]
[327489388,1716123038470,-32980.83041293,0.00026643,2]
[327489389,1716123038479,-557.68,0.00026644,2]
[327489390,1716123038488,-687.5,0.00026644,2]
[327489391,1716123038499,-500.0,0.00026644,2]
[327489392,1716123038509,-500.0,0.00026644,2]
[327489393,1716123038519,-690.2,0.00026644,2]
[327489394,1716123038528,-500.0,0.00026644,2]
[327489395,1716123038538,-500.0,0.00026644,2]
[327489396,1716123038548,-652.62,0.00026644,2]
[327489397,1716123038558,-500.0,0.00026644,2]
[327489398,1716123038568,-755.17,0.00026644,2]
[327489399,1716123038579,-500.0,0.00026644,2]
[327489400,1716123038588,-500.0,0.00026644,2]
[327489401,1716123038597,-500.0,0.00026644,2]
[327489402,1716123038607,-1018.22,0.00026644,2]
[327489403,1716123038616,-1182.89,0.00026644,2]
[327489404,1716123038625,-500.0,0.00026644,2]
[327489405,1716123038635,-500.0,0.00026644,2]
[327489406,1716123038644,-847.7,0.00026644,2]
[327489407,1716123038654,-1067.01,0.00026644,2]
[327489408,1716123038663,-963.01,0.00026644,2]
[327489409,1716123038672,-500.0,0.00026644,2]
[327489410,1716123038681,-500.0,0.00026644,2]
[327489411,1716123038692,-500.0,0.00026644,2]
[327489412,1716123038702,-500.0,0.00026644,2]
[327489413,1716123038714,-500.0,0.00026644,2]
[327489414,1716123038724,-2351.39,0.00026644,2]
[327489415,1716123038734,-500.0,0.00026644,2]
[327489416,1716123038744,-500.0,0.00026644,2]
[327489417,1716123038754,-500.0,0.00026644,2]
[327489418,1716123038763,-500.0,0.00026644,2]
[327489419,1716123038772,-500.0,0.00026644,2]
[327489420,1716123038782,-500.0,0.00026644,2]
[327489421,1716123038792,-500.0,0.00026644,2]
[327489422,1716123038801,-500.0,0.00026644,2]
[327489423,1716123038811,-500.0,0.00026644,2]
[327489424,1716123038820,-500.0,0.00026644,2]
[327489425,1716123038831,-757.07,0.00026644,2]
[327489426,1716123038840,-519.73236043,0.00026644,2]
[327489427,1716123038850,-500.0,0.00026644,2]
[327489428,1716123038859,-500.0,0.00026645,2]
[327489429,1716123038868,-500.0,0.00026645,2]
[327489430,1716123038878,-500.0,0.00026645,2]
[327489431,1716123038887,-500.0,0.00026645,2]
[327489432,1716123038896,-500.0,0.00026645,2]
[327489433,1716123038905,-500.0,0.00026645,2]
[327489434,1716123038915,-500.0,0.00026645,2]
[327489435,1716123038924,-500.0,0.00026645,2]
[327489436,1716123038934,-500.0,0.00026645,2]
[327489437,1716123038947,-500.0,0.00026645,2]
[327489438,1716123038956,-295.97834139,0.00026645,2]
[327489439,1716123038965,-500.0,0.00026645,2]
[327489440,1716123038974,-500.0,0.00026645,2]
[327489441,1716123038983,-541.20172856,0.00026645,2]
[327489442,1716123038992,-500.0,0.00026645,2]
[327489443,1716123039002,-527.97551455,0.00026645,2]
[327489444,1716123039012,-500.0,0.00026645,2]
[327489445,1716123039021,-500.0,0.00026645,2]
[327489446,1716123039031,-532.46383557,0.00026645,2]
[327489447,1716123039041,-500.0,0.00026645,2]
[327489448,1716123039051,-528.3,0.00026645,2]
[327489449,1716123039060,-500.0,0.00026645,2]
[327489450,1716123039070,-500.0,0.00026645,2]
[327489451,1716123039080,-500.0,0.00026645,2]
[327489452,1716123039090,-500.0,0.00026645,2]
[327489453,1716123039100,-500.0,0.00026645,2]
[327489454,1716123039110,-500.0,0.00026645,2]
[327489455,1716123039119,-625.84,0.00026645,2]
[327489456,1716123039128,-500.0,0.00026645,2]
[327489457,1716123039142,-500.0,0.00026645,2]
[327489458,1716123039152,-500.0,0.00026645,2]
[327489459,1716123039163,-500.0,0.00026645,2]
[327489460,1716123039172,-500.0,0.00026645,2]
[327489461,1716123039182,-500.0,0.00026645,2]
[327489462,1716123039191,-500.0,0.00026645,2]
[327489463,1716123039200,-500.0,0.00026645,2]
[327489464,1716123039211,-516.95344129,0.00026645,2]
[327489465,1716123039221,-507.18718404,0.00026645,2]
[327489466,1716123039231,-500.0,0.00026645,2]
[327489467,1716123039241,-500.0,0.00026645,2]
[327489468,1716123039251,-500.0,0.00026645,2]
[327489469,1716123039261,-500.0,0.00026645,2]
[327489470,1716123039273,-530.27097059,0.00026645,2]
[327489471,1716123039283,-500.0,0.00026645,2]
[327489472,1716123039294,-500.0,0.00026645,2]
[327489473,1716123039304,-232.00529308,0.00026645,2]
[327489474,1716123039314,-500.0,0.00026645,2]
[327489475,1716123039323,-500.0,0.00026645,2]
[327489476,1716123039333,-500.0,0.00026645,2]
[327489477,1716123039344,-527.01142606,0.00026645,2]
[327489478,1716123039353,-500.0,0.00026645,2]
[327489479,1716123039364,-500.0,0.00026645,2]
[327489480,1716123039373,-500.0,0.00026645,2]
[327489481,1716123039383,-500.0,0.00026645,2]
[327489482,1716123039393,-500.0,0.00026645,2]
[327489483,1716123039403,-238.7262884,0.00026645,2]
[327489484,1716123039412,-152.56274471,0.00026645,2]
[327489485,1716123039425,-500.0,0.00026645,2]
[327489486,1716123039436,-500.0,0.00026645,2]
[327489487,1716123039445,-525.06253742,0.00026645,2]
[327489488,1716123039456,-500.0,0.00026645,2]
[327489489,1716123039466,-500.0,0.00026645,2]
[327489490,1716123039476,-500.0,0.00026645,2]
[327489491,1716123039485,-511.14078087,0.00026645,2]
[327489492,1716123039495,-8646.62,0.00026645,2]
[327489493,1716123039505,-500.0,0.00026645,2]
[327489494,1716123039514,-500.0,0.00026645,2]
[327489495,1716123039524,-500.0,0.00026645,2]
[327489496,1716123039533,-500.0,0.00026645,2]
[327489497,1716123039543,-500.0,0.00026645,2]
[327489498,1716123039552,-500.0,0.00026645,2]
[327489499,1716123039562,-500.0,0.00026645,2]
[327489500,1716123039572,-537.35,0.00026645,2]
[327489501,1716123039582,-500.0,0.00026645,2]
[327489502,1716123039592,-500.0,0.00026645,2]
[327489503,1716123039602,-500.0,0.00026645,2]
[327489504,1716123039612,-500.0,0.00026645,2]
[327489505,1716123039621,-500.0,0.00026645,2]
[327489506,1716123039631,-500.0,0.00026645,2]
[327489507,1716123039640,-500.0,0.00026645,2]
[327489508,1716123039650,-500.0,0.00026645,2]
[327489509,1716123039659,-500.0,0.00026645,2]
[327489510,1716123039669,-1311.74,0.00026645,2]